[Event "1st Kallai Gabor Memorial 2022"]
[Site "Budapest"]
[Date "2022.11.28"]
[Round "1.1"]
[White "Bjerre, Jonas Buhl"]
[Black "Motylev, Alexander"]
[Result "1/2-1/2"]
[ECO "A06"]
[WhiteElo "2622"]
[BlackElo "2628"]
[Annotator "TA"]
[PlyCount "125"]
[EventDate "2022.11.28"]
[EventCountry "HUN"]
[SourceTitle "playchess.com"]
[Source "ChessBase"]
[SourceQuality "1"]
[TimeControl "1500+5"]

{[%evp 11,124,0,6,0,-1,-7,-2,-37,19,1,0,8,18,-14,37,27,33,0,13,22,57,6,121,99,106,106,99,92,221,120,131,145,141,136,145,114,109,112,210,70,67,0,0,0,0,0,0,0,0,-44,0,0,0,0,0,0,0,0,0,0,0,0,0,0,0,0,0,0,0,0,0,0,8,8,8,8,8,8,8,8,8,8,8,8,318,318,318,318,318,318,318,318,318,318,318,318,318,318,318,318,318,318,318,318,318,318,318,8,8,8,8,8,8,0,0]} 1. Nf3 {[%emt 0:00:11]} d5 {[%emt 0:00:15]} 2. g3 {[%emt 0:00:04]} g6 {[%emt 0:01:21]} 3. Bg2 {[%emt 0:00:16]} Bg7 {[%emt 0:00:03]} 4. O-O {[%emt 0:01:06]} e5 {[%emt 0:00:16]} 5. d3 {[%emt 0:00:04]} Ne7 {[%emt 0:00:17]} 6. e4 {[%emt 0:00:13]} O-O {[%emt 0:00:12]} 7. b4 {[%emt 0:00:40] A07: Réti Opening: New York and Capablanca Systems.} a6 {[#]} 8. Qe2 $146 {[%emt 0:02:52]} ({Predecessor:} 8. a4 Nbc6 9. c3 d4 10. Bb2 dxc3 11. Bxc3 Bg4 12. h3 Bxf3 13. Bxf3 Qd7 14. h4 Rad8 {½-½ (53) Gritsenko,V-Sotnikov,I (2445) Voronezh 1997}) 8... Nbc6 {[%emt 0:01:50]} 9. c3 {[%emt 0:00:03]} h6 {[%emt 0:00:47]} (9... d4 $15) 10. Nbd2 {[%emt 0:00:29]} Be6 {[%emt 0:00:40]} 11. Bb2 {[%emt 0:00:17]} Re8 {[%emt 0:00:46]} 12. a4 {[%emt 0:00:27]} dxe4 {[%emt 0:02:45]} (12... d4 $11) 13. dxe4 $14 {[%emt 0:00:30]} Nc8 {[%emt 0:00:26]} 14. b5 {[%emt 0:02:03]} Na5 {[%emt 0:00:38]} 15. c4 $36 {[%emt 0:00:17][%mdl 2048] White is more active.} Nb6 {[%emt 0:02:07]} 16. Rfd1 {[%emt 0:03:58]} (16. Nxe5 Bxe5 17. Bxe5 Nbxc4 $11) (16. Rfc1 $1 $14) 16... Naxc4 {[%emt 0:01:12]} (16... Nd7 $11) 17. Nxc4 $16 {[%emt 0:01:00][%mdl 64] Discovered Attack} Bxc4 {[%emt 0:00:03]} 18. Qc2 Qf6 {[%emt 0:04:20]} 19. a5 {[%emt 0:01:28]} Qe6 20. Nd2 {[%emt 0:01:58]} (20. axb6 Bb3 21. Qxc7 Bxd1) ({White should try} 20. bxa6 $1 $18 Bb3 21. Qxc7 Bxd1 22. axb7 Bxf3 23. Bxf3 (23. bxa8=B Nxa8 24. Qb7 Be2 $17)) 20... Be2 {[%emt 0:01:53]} 21. Re1 {[%emt 0:00:11]} (21. axb6 Bxd1 22. Rxd1 (22. Qxd1 Qxb6 23. Nc4 Qc5 $15) 22... cxb6 $14) 21... Bxb5 {[%emt 0:00:05]} 22. axb6 {[%emt 0:00:03]} cxb6 {[%emt 0:00:32]} 23. Bf1 {[%emt 0:01:38]} Rac8 {[%emt 0:00:22]} 24. Qb1 {[%emt 0:00:40] Black must now prevent Bxb5.} Red8 {[%emt 0:00:17]} (24... Bxf1 $16 25. Nxf1 (25. Rxf1 Red8 $14) 25... b5) 25. Rd1 {[%emt 0:00:17]} ({Only move:} 25. Bxb5 $1 $18 {Threatens to win with Bd3.} Rxd2 26. Bc1) 25... Bc6 {[%emt 0:02:29]} 26. Nc4 {[%emt 0:03:09]} (26. Bc3 $14) 26... Rxd1 $11 {[%emt 0:00:54]} 27. Qxd1 {[%emt 0:00:01]} Bxe4 {[%emt 0:00:04]} 28. Qd6 {[%emt 0:00:31]} Bd5 {[%emt 0:00:38]} ({Don't take} 28... b5 29. Qxe6 fxe6 30. Nd6 $18 (30. Nxe5 Rc2 $14)) 29. Qxe6 $1 {[%emt 0:01:10]} Bxe6 {[%emt 0:00:02]} 30. Ne3 {[%emt 0:00:45]} e4 {[%emt 0:00:35]} 31. Bxg7 {[%emt 0:00:19]} Kxg7 {[%emt 0:00:01]} 32. Bg2 {[%emt 0:00:12]} f5 {[%emt 0:00:02]} 33. f3 $1 {[%emt 0:00:01]} exf3 {[%emt 0:00:24]} 34. Bxf3 {[%emt 0:00:02]} Rc7 {[%emt 0:00:09]} 35. Rd1 $1 {[%emt 0:00:16]} Rd7 {[%emt 0:01:14] Inhibits Rd6.} 36. Rxd7+ Bxd7 37. Bxb7 {[%emt 0:00:29]} a5 {[%emt 0:00:02]} 38. Nc4 {[%emt 0:00:03]} a4 {[%emt 0:00:11]} 39. Nxb6 {[%emt 0:00:11]} a3 {[%emt 0:00:01][%mdl 64] ( -> ...a2)} 40. Bd5 {[%emt 0:00:02] Against a2} (40. Nxd7 $2 {perishes.} a2 41. Bg2 a1=Q+ $19) 40... Be8 {[%emt 0:00:01] Hoping for ...Bf7.} 41. Ba2 {[%emt 0:00:21]} Bf7 {[%emt 0:00:02]} 42. Nd5 {[%emt 0:00:02]} g5 {[%emt 0:00:02]} 43. Kf2 {[%emt 0:00:04]} Bxd5 {[%emt 0:00:09]} 44. Bxd5 {[%mdl 4096] Endgame KB-KP} Kf6 45. Ke3 {[%emt 0:00:09]} Ke5 {[%emt 0:00:02]} 46. Ba2 {[%emt 0:00:03]} h5 {[%emt 0:00:15]} 47. Bb3 {[%emt 0:00:12]} f4+ $2 {[%emt 0:00:19][%mdl 8192] [#]} (47... h4 $11 {and Black has nothing to worry.}) 48. gxf4+ $1 $18 gxf4+ {[%emt 0:00:01] KB-K3P} 49. Kf3 {[%emt 0:00:05]} Kf5 {[%emt 0:00:03] [#]} 50. h4 {[%emt 0:00:10]} Ke5 {[%emt 0:00:07]} 51. Bg8 {[%emt 0:00:06]} Kf5 {[%emt 0:00:03]} 52. Ba2 {[%emt 0:00:02]} Ke5 {[%emt 0:00:01]} 53. Bb1 {[%emt 0:00:01]} Kf6 {[%emt 0:00:03]} 54. Kxf4 {[%emt 0:00:02] KB-KPP} ({Stronger than} 54. Ke4 Kg7 $11) 54... Kg7 {[%emt 0:00:01]} 55. Ba2 {[%emt 0:00:03]} Kh7 {[%emt 0:00:02]} 56. Kg5 {[%emt 0:00:01]} Kg7 {[%emt 0:00:01]} 57. Kxh5 {[%emt 0:00:02] KB-KP} Kh7 {[%emt 0:00:02]} 58. Kg5 {[%emt 0:00:01]} Kg7 {[%emt 0:00:01]} 59. h5 $2 {[%emt 0:00:01]} ({Better is} 59. Kf5 $18 {Kg4 is the strong threat.} Kh8 60. h5) 59... Kh7 {[%emt 0:00:01] The position is equal.} 60. Bb1+ {[%emt 0:00:03]} Kg7 $1 {[%emt 0:00:02]} 61. h6+ {[%emt 0:00:04]} Kh8 {[%emt 0:00:01]} 62. Kg6 {[%emt 0:00:04]} a2 {[%emt 0:00:03]} 63. Bxa2 {[%emt 0:00:02] Weighted Error Value: White=0.21 (precise) /Black=0.22 (precise)} 1/2-1/2

[Event "1st Kallai Gabor Memorial 2022"]
[Site "Budapest"]
[Date "2022.11.28"]
[Round "1.2"]
[White "Ruck, Robert"]
[Black "Kozak, Adam"]
[Result "0-1"]
[ECO "A04"]
[WhiteElo "2537"]
[BlackElo "2538"]
[Annotator "TA"]
[PlyCount "90"]
[EventDate "2022.11.28"]
[EventCountry "HUN"]
[SourceTitle "playchess.com"]
[Source "ChessBase"]
[SourceQuality "1"]
[TimeControl "1500+5"]

{[%evp 13,90,38,43,49,42,39,71,74,75,72,76,60,79,13,31,25,45,34,30,35,39,-29,-43,-42,-36,-39,0,0,-9,-17,-23,-21,-12,-89,-82,-155,-162,-158,-156,-196,-152,-309,-294,-389,-389,-501,-500,-488,-447,-419,-365,-413,-357,-458,-415,-439,-236,-483,-477,-474,-435,-440,-327,-327,-327,-327,-327,-559,-300,-984,-958,-895,-824,-980,-963,-906,-860,-766,-522]} 1. Nf3 {[%emt 0:00:19]} c5 {[%emt 0:00:14]} 2. c4 {[%emt 0:00:05]} Nc6 {[%emt 0:00:07]} 3. Nc3 {[%emt 0:00:12]} g6 {[%emt 0:00:03]} 4. e3 {[%emt 0:00:03]} Bg7 {[%emt 0:02:17]} 5. d4 {[%emt 0:00:06]} d6 {[%emt 0:00:01]} 6. Be2 {[%emt 0:01:36]} Nf6 {[%emt 0:03:14]} 7. d5 {[%emt 0:01:32]} Na5 {[%emt 0:00:36]} 8. e4 {[%emt 0:00:05] A35: Symmetrical English: 2 Nc3 Nc6 3 Nf3.} O-O {[%emt 0:00:25]} 9. O-O {[%emt 0:02:00]} e5 {[%emt 0:01:06]} 10. Bg5 {White is better.} h6 {[%emt 0:03:52]} 11. Bd2 {[%emt 0:02:27] [#]} Bd7 $5 $146 {[%emt 0:00:53][%mdl 8] New and interesting.} ({Predecessor:} 11... Nh7 12. g3 Bh3 13. Re1 b6 14. Nh4 Bd7 15. Rf1 a6 16. b3 Rb8 17. Qc2 Ng5 {1-0 (77) Erdos,V (2615)-Ivanisevic,I (2599) Abu Dhabi 2021}) 12. Ne1 {[%emt 0:02:25]} a6 {[%emt 0:00:29][%cal Ob7b5]} 13. Nc2 {[%emt 0:00:14] Inhibits b5.} (13. Rb1 $16) 13... b5 $1 $11 {[%emt 0:01:31]} 14. cxb5 {[%emt 0:00:07]} axb5 {[%emt 0:00:01] aiming for ...b4.} 15. b4 $1 {[%emt 0:00:01]} cxb4 {[%emt 0:00:02]} 16. Nxb4 {[%emt 0:00:02]} Rc8 {[%emt 0:01:49]} 17. Bxb5 {[%emt 0:04:22] [#]} ({Better is} 17. Be1 $14) 17... Nxe4 $1 {[%mdl 64]} 18. Bxd7 Nxc3 {[%emt 0:00:19]} 19. Bxc3 {[%emt 0:01:57]} Rxc3 {[%emt 0:00:01]} 20. Bb5 {[%emt 0:00:49]} e4 {[%emt 0:01:13][%cal Be5e4,Be4e3,Be3f2][%mdl 32] White must now prevent ...Rc5.} 21. Rc1 {[%emt 0:02:38]} e3 {[%emt 0:00:30]} 22. Rxc3 {[%emt 0:04:13]} Bxc3 {[%emt 0:00:05]} 23. Nc6 {[%emt 0:00:03]} (23. Nd3 $11) 23... Qb6 {[%emt 0:02:16]} 24. Qe2 {[%emt 0:00:01]} (24. a4 $142) 24... exf2+ $17 {[%emt 0:00:12]} 25. Kh1 {[%emt 0:00:01] [#]} Be1 {[%emt 0:01:49]} 26. a4 {[%emt 0:00:19] [#]} Nb3 $1 {[%emt 0:00:33]} 27. h3 $2 {[%emt 0:00:39] This costs White the game.} (27. h4 $17 {might work better.}) 27... Qc5 $19 {[%emt 0:00:12]} 28. Qd1 {[%emt 0:00:51]} Qe3 {[%emt 0:00:36] Inhibits Ne7+.} 29. Qd3 {[%emt 0:00:08]} Qxd3 30. Bxd3 {[%emt 0:00:01]} Ra8 {[%emt 0:00:06]} 31. a5 {[%emt 0:00:13]} Nxa5 {[%emt 0:00:23]} ({Inferior is} 31... Bxa5 32. Rxf2 Be1 33. Rb2 $17) 32. Nd4 Re8 {[%emt 0:00:19]} 33. Kh2 {[%emt 0:00:13]} Re5 {[%emt 0:00:26]} 34. Nf3 {[%emt 0:00:06]} Rxd5 {[%emt 0:00:20]} (34... Re3 $142 35. Bb5 Nb3) 35. Ba6 {[%emt 0:00:03]} (35. Be2 {was forced.}) 35... Rd1 {[%emt 0:01:13]} 36. g4 {[%emt 0:00:02]} Nb3 {[%emt 0:00:07]} 37. Kg2 {[%emt 0:00:08]} Nd2 {[%emt 0:00:08]} 38. Nxd2 {[%emt 0:00:02]} Rxd2 {[%emt 0:00:01][%mdl 4096] Endgame KRB-KRB} 39. Rh1 {[%emt 0:00:09]} Rb2 {[%emt 0:00:09]} 40. Kf1 $2 {[%emt 0:00:07]} (40. h4) 40... Bb4 {[%emt 0:00:05]} 41. Rh2 $2 {[%emt 0:00:03]} (41. Kg2) 41... Bc5 {[%emt 0:00:01] Black is clearly winning.} 42. Bd3 {[%emt 0:00:04]} Rd2 {[%emt 0:00:02]} 43. Ba6 {[%emt 0:00:02]} Ra2 {[%emt 0:00:01]} 44. Bc4 {[%emt 0:00:01]} Ra1+ {[%emt 0:00:02]} 45. Kg2 {[%emt 0:00:02]} Rg1+ {[%emt 0:00:02] Weighted Error Value: White=0.60/Black=0.23 (precise)} 0-1

[Event "1st Kallai Gabor Memorial 2022"]
[Site "Budapest"]
[Date "2022.11.28"]
[Round "1.3"]
[White "Berkes, Ferenc"]
[Black "Beliavsky, Alexander G"]
[Result "1/2-1/2"]
[ECO "A46"]
[WhiteElo "2643"]
[BlackElo "2487"]
[Annotator "TA"]
[PlyCount "98"]
[EventDate "2022.11.28"]
[EventCountry "HUN"]
[SourceTitle "playchess.com"]
[Source "ChessBase"]
[SourceQuality "1"]
[TimeControl "1500+5"]

{[%evp 9,98,6,36,42,45,47,48,0,0,0,28,22,23,15,36,-2,0,-34,-21,-38,-12,-31,-26,-44,-38,-52,0,0,0,0,14,15,17,20,18,8,41,0,0,-37,-19,-25,-23,-29,-8,-42,-43,-59,0,0,28,31,37,37,29962,29961,29965,29966,29967,29963,29965,12047,12793,0,0,0,0,0,0,0,0,0,0,0,0,0,0,0,0,0,0,0,0,0,96,0,0,0,0,0,0]} 1. d4 {[%emt 0:00:09]} Nf6 {[%emt 0:00:10]} 2. Nf3 {[%emt 0:00:02]} d5 {[%emt 0:00:05]} 3. g3 {[%emt 0:00:08]} c5 {[%emt 0:00:41]} 4. Bg2 {[%emt 0:00:02]} cxd4 {[%emt 0:00:06]} 5. O-O {[%emt 0:00:03]} Bg4 {[%emt 0:01:59]} 6. Ne5 {[%emt 0:00:19][%cal Oe5g4] [#] Strongly threatening Nxg4! D02: 1 d4 d5 2 Nf3 sidelines, including 2...Nf6 3 g3 and 2...Nf6 3 Bf4.} Bh5 $146 {[%emt 0:00:36]} ({Predecessor:} 6... Nc6 7. Nxg4 Nxg4 8. c3 e6 9. cxd4 Nf6 10. Nc3 Bb4 11. e3 O-O 12. Bd2 Rc8 13. Qe2 Bxc3 14. Bxc3 Ne4 15. Rfc1 Nxc3 16. Rxc3 {0-1 (62) Yandemirov,V (2475)-Rublevsky,S (2670) Togliatti 2003}) 7. Qxd4 {[%emt 0:02:29]} e6 {[%emt 0:01:24]} 8. Qa4+ {[%emt 0:03:27]} (8. e4 $14) 8... Nbd7 $11 {[%emt 0:00:39]} 9. c4 {[%emt 0:00:29]} Bd6 {[%emt 0:01:46]} 10. Nxd7 {[%emt 0:00:14]} Qxd7 {[%emt 0:00:02]} 11. Qxd7+ {[%emt 0:00:16]} Kxd7 {[%emt 0:00:02]} 12. cxd5 {[%emt 0:00:48]} (12. Nc3 {is more complex.} d4 13. Nb5 Bxe2 14. Re1) 12... Nxd5 {[%emt 0:00:18]} (12... Bxe2 13. dxe6+ fxe6 14. Re1 $16) 13. e4 {[%emt 0:01:38]} Nb4 {[%emt 0:00:17]} 14. Nc3 {[%emt 0:00:03]} Rac8 {[%emt 0:03:31]} 15. Rb1 {[%emt 0:00:12]} Rhd8 {[%emt 0:00:32]} 16. h3 {[%emt 0:03:51]} f6 {[%emt 0:00:04]} 17. Be3 {[%emt 0:00:32]} Bc5 {[%emt 0:01:03]} (17... b6 $15) 18. e5 {Bxc5 is the strong threat.} Bxe3 {[%emt 0:02:00]} 19. fxe3 {[%emt 0:00:13]} fxe5 {[%emt 0:00:02]} 20. Bxb7 {[%emt 0:00:13]} Rb8 {[%emt 0:00:27]} 21. Be4 {[%emt 0:00:04]} Ke7 {[%emt 0:00:18]} 22. Bxh7 {[%emt 0:02:51]} Rd2 {[%emt 0:00:47]} 23. Ne4 {[%emt 0:00:30]} Re2 24. Nc3 {[%emt 0:04:25]} Rxe3 {[%emt 0:00:46]} 25. Kf2 {[%emt 0:01:34]} Rf3+ {[%emt 0:00:12]} 26. Kg2 {[%emt 0:00:00]} Rxf1 {[%emt 0:00:31]} 27. Rxf1 {[%emt 0:00:01]} Nd5 {[%emt 0:00:24]} 28. Rf2 {[%emt 0:00:02]} g6 {[%emt 0:02:08]} (28... Nxc3 $15 29. bxc3 Rc8) 29. g4 {[%emt 0:00:03][%cal Bg3g4,Bg4h5][%mdl 32]} Rh8 {[%emt 0:00:02]} (29... Nf4+ $5 30. Rxf4 exf4 31. gxh5 gxh5 $11) 30. gxh5 {[%emt 0:00:10]} Rxh7 {[%emt 0:00:01]} 31. hxg6 {[%emt 0:00:01][%mdl 4096] Endgame KRN-KRN} Rg7 $2 {[%mdl 8192]} (31... Rh6 $14) 32. Rf7+ {[%emt 0:01:38]} Rxf7 {[%emt 0:00:04] [#]} 33. Nxd5+ $1 {[%emt 0:00:46]} ({Less strong is} 33. gxf7 Kxf7 34. Kf3 Nf4 $16) 33... exd5 {[%emt 0:00:02]} 34. gxf7 {[%emt 0:00:01]} Kxf7 {[%emt 0:00:10] K3P-K3P} 35. b4 {[%emt 0:00:01]} d4 {[%emt 0:00:20]} 36. b5 $2 {[%emt 0:00:01]} (36. Kf3 $18 {Threatening mate with a4.} Kf6 37. Ke4) 36... Ke6 $1 {[%emt 0:00:31]} 37. a4 {[%emt 0:00:01]} (37. Kf2 $5 Kd5 $8 38. h4 $11) 37... Kd5 {[%emt 0:00:15] Threatens to win with ...d3.} 38. a5 {[%emt 0:00:18] And now b6 would win.} Kc4 {[%emt 0:02:32]} 39. b6 {[%emt 0:00:02]} axb6 40. axb6 {[%emt 0:00:07] KPP-KPP} (40. a6 $5 d3 $8 41. Kf2 $11) 40... d3 {[%emt 0:00:01]} 41. Kf2 {[%emt 0:00:37] White wants to mate with b7.} Kc3 $1 {[%emt 0:00:01]} 42. b7 {[%emt 0:00:01]} d2 {[%emt 0:00:01]} 43. b8=Q {[%emt 0:00:03]} (43. b8=B {gets mated.} d1=Q 44. Kg3 Kd3 45. Kh4 Qg1 46. Bxe5 Ke4 47. Bc7 Kf5 48. Bd8 Qf2+ 49. Kh5 Qg3 50. Be7 Qxh3+ 51. Bh4 Qg4+ 52. Kh6 Qg6#) (43. Ke2 Kc2 44. b8=Q d1=Q+ 45. Kf2 Qd4+ 46. Kf1 Qf4+ 47. Kg2 Qg5+ 48. Kf3 Qf5+ 49. Ke2 Qh5+ 50. Kf2 Qh4+ 51. Kg2 Qh5) 43... d1=Q {[%emt 0:00:02]} 44. Qxe5+ {[%emt 0:00:02] KQ-KQ} Qd4+ {[%emt 0:00:26]} 45. Qe3+ {[%emt 0:00:01]} Kc4 {[%emt 0:00:11]} 46. Kf3 {[%emt 0:00:03] White threatens Qxd4+ and mate.} Qd1+ {[%emt 0:00:40] [#]} (46... Qxe3+ $11 47. Kxe3 Kd5) 47. Kg3 {[%emt 0:00:15]} (47. Kf4 $1 $16) 47... Qd6+ {[%emt 0:00:08] The position is equal.} 48. Kg4 {[%emt 0:00:10]} Qd7+ {[%emt 0:00:07]} 49. Kf3 {[%emt 0:00:05]} Qxh3+ {Black defended with fortune.   Weighted Error Value: White=0.17 (very precise) /Black=0.23 (precise)} 1/2-1/2

[Event "1st Kallai Gabor Memorial 2022"]
[Site "Budapest"]
[Date "2022.11.28"]
[Round "1.4"]
[White "Borhy, Marcell"]
[Black "Gaal, Zsoka"]
[Result "1-0"]
[ECO "A05"]
[WhiteElo "2407"]
[BlackElo "2286"]
[Annotator "TA"]
[PlyCount "91"]
[EventDate "2022.11.28"]
[EventCountry "HUN"]
[SourceTitle "playchess.com"]
[Source "ChessBase"]
[SourceQuality "1"]
[TimeControl "1500+5"]

{[%evp 14,91,11,-4,22,8,35,23,26,4,56,54,56,54,70,60,59,39,195,213,251,228,230,245,237,175,198,224,213,158,306,271,243,257,242,233,238,229,298,242,238,171,265,271,300,291,248,270,392,336,316,334,342,327,760,250,1122,1120,1166,975,967,924,1177,579,1046,159,158,0,0,0,609,595,636,632,615,607,732,731,700,642]} 1. Nf3 {[%emt 0:00:12]} Nf6 {[%emt 0:00:13]} 2. g3 {[%emt 0:00:14]} d5 {[%emt 0:00:02]} 3. Bg2 {[%emt 0:00:02]} c5 {[%emt 0:00:04]} 4. O-O {[%emt 0:00:03]} e6 {[%emt 0:00:02]} 5. c4 {[%emt 0:00:03]} d4 {[%emt 0:00:44]} 6. e3 {[%emt 0:00:02]} Nc6 {[%emt 0:00:24]} 7. exd4 {[%emt 0:00:03]} cxd4 {[%emt 0:00:04]} 8. d3 {[%emt 0:00:03]} Be7 {[%emt 0:02:14] A13: English Opening: 1...e6.} 9. Re1 {[%emt 0:00:30]} h6 {[%emt 0:01:03]} 10. Na3 {[%emt 0:00:15]} O-O {[%emt 0:01:49] White has an edge.} 11. Bf4 {[%emt 0:01:20] [#]} Qb6 $146 {[%emt 0:06:00]} (11... Bc5 $11) ({Predecessor:} 11... Nd7 12. Nb5 Nc5 13. Bc7 Qd7 14. Ne5 Nxe5 15. Bxe5 a6 16. Nc7 Ra7 17. b4 Bd6 18. bxc5 Bxc7 {1-0 (60) Lalith,B (2563)-Nagy,G (2530) Budapest 2022}) 12. Rb1 $14 {[%emt 0:00:28]} Bb4 {[%emt 0:01:07]} 13. Re2 {[%emt 0:00:21]} Nh5 {[%emt 0:00:19]} 14. Bd2 $1 {[%emt 0:00:13]} a5 {[%emt 0:03:20]} 15. Ne5 {[%emt 0:02:40]} (15. Nc2 {simplifies} Bxd2 16. Qxd2 Nf6 17. a3) 15... Bd6 $2 {[%emt 0:02:06] [#]} ({Black should play} 15... Nf6 $14) 16. c5 $1 $18 {[%emt 0:01:24]} Bxc5 {[%emt 0:01:21]} 17. Nac4 {[%emt 0:00:06]} Qa7 {[%emt 0:00:26]} 18. Nxc6 {[%emt 0:00:42]} bxc6 {[%emt 0:00:01]} 19. Bxc6 {[%emt 0:00:16]} Rb8 {[%emt 0:00:47]} 20. Bxa5 {[%emt 0:01:01]} (20. Nxa5 $6 Bb4 $16) 20... Ba6 {[%emt 0:00:45]} 21. Ne5 {[%emt 0:02:11] Strongly threatening b4.} Bb5 {[%emt 0:00:59]} (21... Bxd3 $2 22. Nxd3 (22. Qxd3 Qxa5 23. Nd7 Nf6 $18) 22... Rfc8 23. Rc2 Rxc6 24. b4 $18) (21... Nf6 $16) 22. Be1 {[%emt 0:00:44]} Bd6 {[%emt 0:00:33]} 23. a4 {[%emt 0:00:36]} Bxe5 {[%emt 0:01:00]} 24. axb5 {[%emt 0:02:31]} Bd6 {[%emt 0:00:02]} 25. Ra1 {[%emt 0:00:14]} Qc5 {[%emt 0:00:06]} 26. Ra4 {[%emt 0:00:50]} Qg5 {[%emt 0:01:02]} 27. Kh1 {[%emt 0:02:37]} e5 {[%emt 0:00:10]} (27... Nf6 {keeps fighting.} 28. Rxd4 Bc5) 28. Bb4 {[%emt 0:00:30]} Rfd8 {[%emt 0:00:09]} 29. Bxd6 {[%emt 0:00:21]} Rxd6 {[%emt 0:00:01]} 30. Qe1 {[%emt 0:00:08]} f6 {[%emt 0:00:18]} (30... Re6 $142 31. Bd7 Re7) 31. Ra8 {[%emt 0:01:58]} (31. f4 Qg6 32. Be4 Qf7 $18) 31... Rxa8 32. Bxa8 {[%emt 0:00:01]} Qg4 {[%emt 0:00:12]} 33. Rc2 {[%emt 0:00:12]} f5 $2 {[%emt 0:00:09]} (33... Rb6 34. Rc5 Kh7 35. Be4+ f5) 34. Qe2 $2 {[%emt 0:00:44]} (34. Rc8+ Kh7 35. Qxe5) 34... Qg5 $2 (34... Qxe2 35. Rxe2 e4 36. dxe4 fxe4) 35. Qxe5 {[%emt 0:00:32]} Rd8 {[%emt 0:00:16]} 36. Bd5+ {[%emt 0:00:35]} Kh7 {[%emt 0:00:01]} 37. b6 {[%emt 0:00:00] And now b7 would win.} (37. Qxd4 Nf6 $16) 37... Nf6 {[%emt 0:00:01] [#] Against b7} 38. b7 $1 {[%emt 0:00:31]} Nxd5 {[%emt 0:00:11]} (38... Rxd5 39. b8=Q) 39. b8=Q $2 {[%emt 0:00:06]} ({Less strong is} 39. b8=R Rxb8 40. Qxd5 (40. Qxb8 Qh5 $11) 40... f4 41. Qxd4 Rd8 42. gxf4 (42. Qxf4 Qxf4 43. gxf4 Rxd3 $16) 42... Qh5 43. Qe4+ (43. Qxd8 Qf3+ 44. Kg1 Qg4+ 45. Kh1 Qf3+ 46. Kg1 Qg4+ 47. Kh1 Qf3+ $11) 43... Kh8 $16) (39. Rc8 $18 {is the precise move to win.}) 39... Rxb8 $16 {[%emt 0:00:02]} 40. Qxb8 {[%emt 0:00:01][%mdl 4096] Endgame KQR-KQN} (40. Qxd5 $16 {aiming for b4.} Qf6 41. Kg2) 40... Qg4 $11 {[%emt 0:00:08]} 41. Kg2 {[%emt 0:00:22] Threatens to win with Qe5.} (41. Rd2 $5 Qf3+ $8 42. Kg1 $11) 41... f4 $2 {[%emt 0:00:04][%mdl 8192]} (41... Qd1 $11 42. Rc6 Qe2) 42. Qe5 $18 {[%emt 0:00:18][%csl LRd4,LRd5] White is clearly winning.} f3+ {[%emt 0:00:07]} 43. Kg1 {[%emt 0:00:02]} Nf6 {[%emt 0:00:10] ( -> ...Qh3)} 44. Rc5 {[%emt 0:00:24]} Nd7 {[%emt 0:00:06]} 45. Qf5+ {[%emt 0:00:02]} Qxf5 46. Rxf5 {[%emt 0:00:01] Weighted Error Value: White=0.59/Black=0.56} 1-0

[Event "1st Kallai Gabor Memorial 2022"]
[Site "Budapest"]
[Date "2022.11.28"]
[Round "1.5"]
[White "Horvath, Csaba"]
[Black "Troff, Kayden"]
[Result "1/2-1/2"]
[ECO "A48"]
[WhiteElo "2502"]
[BlackElo "2483"]
[Annotator "TA"]
[PlyCount "62"]
[EventDate "2022.11.28"]
[EventCountry "HUN"]
[SourceTitle "playchess.com"]
[Source "ChessBase"]
[SourceQuality "1"]
[TimeControl "1500+5"]

{[%evp 13,62,34,44,13,39,22,69,59,97,99,106,68,75,77,73,75,68,79,70,59,54,51,72,79,73,65,58,71,60,-11,0,0,0,0,0,0,16,0,0,0,0,0,0,-17,-17,-22,0,0,0,-3,-2]} 1. d4 {[%emt 0:00:12]} Nf6 {[%emt 0:00:09]} 2. Nf3 {[%emt 0:00:14]} g6 {[%emt 0:00:20]} 3. c4 {[%emt 0:00:21]} Bg7 {[%emt 0:00:10]} 4. g3 {[%emt 0:00:10]} O-O {[%emt 0:00:55]} 5. Bg2 {[%emt 0:00:03]} e6 {[%emt 0:00:52]} 6. O-O {[%emt 0:00:43]} d5 {[%emt 0:00:03]} 7. Nc3 $1 {[%emt 0:00:23] 7.Nc3 is better than 7.Qc2.} dxc4 8. e4 {D77: Fianchetto Grünfeld: 6 0-0: Replies other than 6...c6.} Nbd7 {[%emt 0:02:08]} 9. Qe2 {[%emt 0:06:04][%mdl 1024] White has compensation.} Nb6 {[%emt 0:00:16]} (9... c5 $11 {should be considered.}) 10. Rd1 {[%emt 0:00:15] [#] White is slightly better.} Bd7 $146 {[%emt 0:02:10][%cal Bc8d7,Bd7a4,Ba4b5,Bb5a6][%mdl 32]} ({Predecessor:} 10... Re8 11. h3 Bd7 12. Ne5 Bc6 13. Bg5 h6 14. Bxf6 Qxf6 15. Nxc6 bxc6 16. e5 Qf5 17. Bxc6 Qxh3 {1-0 (41) Toll,A (2091)-Loberg,J (1923) Gibraltar 2009}) 11. Ne5 {[%emt 0:03:14]} Qe8 {[%emt 0:01:51]} 12. Be3 {White has more active pieces. The black rooks are badly placed.} Na4 {[%emt 0:06:29]} 13. Nxa4 {[%emt 0:04:10]} Bxa4 {[%emt 0:00:04]} 14. Rdc1 {[%emt 0:00:03]} c5 {[%emt 0:03:00]} 15. dxc5 {[%emt 0:01:40]} c3 {[%emt 0:01:33][%cal Of6g4]} 16. bxc3 {[%emt 0:01:58]} (16. b3 {with more complications.} Bb5 17. Qc2 Nd7 18. Nxd7 Qxd7 19. Rd1) 16... Nd7 17. Nc4 {[%emt 0:01:22]} Bb5 {[%emt 0:01:40]} 18. a4 {[%emt 0:00:01]} Ba6 {[%emt 0:00:03] [#] And now ...Ne5 would win.} 19. Qa2 {[%emt 0:00:02]} Qe7 {[%emt 0:01:17]} 20. Nd6 {[%emt 0:00:19]} b6 21. Bf1 ({White should try} 21. Rd1 $1 $14) 21... Nxc5 {[%emt 0:01:34] The position is equal.} 22. Bxc5 {[%emt 0:02:30]} bxc5 {[%emt 0:00:14]} 23. Bxa6 {[%emt 0:00:19] [#] Hoping for Nc4.} Qxd6 {[%emt 0:00:02]} 24. Bc4 {[%emt 0:00:20]} Rfd8 {[%emt 0:00:18]} 25. Rab1 {[%emt 0:00:34]} Rab8 {[%emt 0:00:16]} 26. Rxb8 {[%emt 0:00:25]} Rxb8 {[%emt 0:00:09]} 27. Qc2 {[%emt 0:00:20]} Rd8 {[%emt 0:00:10][%cal Bb8d8,Bd8d2,Bd2d1][%mdl 32]} 28. Be2 {[%emt 0:00:22]} Qd2 {[%emt 0:00:47]} 29. Kf1 {[%emt 0:00:02]} Bh6 {[%emt 0:00:32]} (29... Qh6 $5 {[%cal Rd8d2]} 30. h4 Rd2 $15) 30. Qxd2 {[%emt 0:00:05]} Rxd2 {[%emt 0:00:03]} 31. Rd1 {[%emt 0:00:28]} Rxd1+ {[%emt 0:00:16] Weighted Error Value: White=0.08 (flawless) /Black=0.08 (flawless)} 1/2-1/2